fUST/lending_fUST_20260212
["ID","MTS","AMOUNT","RATE_DAILY","PERIOD"]
[405110341,1770840638616,-2000.0,0.00036603,2]
[405110342,1770840638626,-152.2402091,0.00036753,2]
[405110343,1770840638638,-170.0,0.00036851,11]
[405110344,1770840638649,-600.0,0.00036852,30]
[405110345,1770840638658,-510.41941337,0.00036974,2]
[405110346,1770840638668,-8299.0,0.00037,30]
[405110347,1770840638678,-669.0,0.00037077,30]
[405110348,1770840638687,-712.0,0.00037099,11]
[405110349,1770840638696,-279.26050733,0.00037335,3]
[405110350,1770840638705,-256.3838175,0.00037335,3]
[405110351,1770840638715,-401.0,0.00037348,11]
[405110352,1770840638724,-401.0,0.00037585,11]
[405110353,1770840638734,-401.0,0.0003762,11]
[405110354,1770840638743,-1014.92952585,0.00037674,2]
[405110355,1770840638752,-712.0,0.00037749,11]
[405110356,1770840638761,-199.593949,0.000378,2]
[405110357,1770840638771,-349.845205,0.00037809,2]
[405110358,1770840638781,-12008.85267658,0.0003789,2]
[405110359,1770840638791,-1287.22064648,0.00037951,3]
[405110360,1770840638800,-3435.01,0.00037953,10]
[405110361,1770840638810,-1287.22064648,0.00037961,3]
[405110362,1770840638819,-4946.42,0.00037961,10]
[405110363,1770840638830,-4122.01,0.00037961,10]
[405110364,1770840638839,-2574.44129296,0.00037963,3]
[405110365,1770840638849,-712.0,0.00037966,11]
[405110366,1770840638858,-23299.20225379,0.00037971,2]
[405110405,1770840639977,-334.0,0.00037961,30]
[405110407,1770840639987,-215.51467285,0.00037971,2]
[405110409,1770840639998,-56485.28307336,0.00037971,2]
[405110411,1770840640008,-151.0,0.00037971,31]
[405110413,1770840640017,-151.0,0.00037971,31]
[405110415,1770840640027,-38000.0,0.00037973,15]
[405110418,1770840640036,-6176.28260276,0.00037973,15]
[405110422,1770840640050,-6760.0,0.00037973,15]
[405110715,1770840645907,-2000.0,0.00036603,2]
[405110716,1770840645917,-640.99757,0.00037973,15]
[405110723,1770841035596,500.0,0.00013273,2]
[405110724,1770841035641,1000.0,0.00013821,2]
[405110727,1770841325303,500.0,0.00013273,2]
[405110728,1770841527451,500.0,0.00013273,2]
[405110729,1770841642106,-1222.6331114,0.00029013,2]
[405110730,1770841642130,-344.62075836,0.00029306,2]
[405110731,1770841644115,-240.63275803,0.00029306,2]
[405110732,1770841644139,-1123.52525754,0.00029605,2]
[405110733,1770841697840,-173.46,0.00024953,2]
[405110734,1770841714485,-376.05467282,0.00025,7]
[405110735,1770841764098,-1519.87051347,0.0002465,2]
[405110736,1770841764121,-317.87036835,0.00025,7]
[405110737,1770841764143,-156.0,0.00029452,34]
[405110738,1770841764165,-199.17191284,0.0003013,2]
[405110739,1770841764188,-400.0,0.0003051,2]
[405110740,1770841764212,-5000.0,0.00030511,2]
[405110741,1770841764236,-556.68601344,0.00030819,2]
[405110742,1770841822298,641.09180111,0.00013699,2]
[405110750,1770841831977,-1160.72508389,0.00024953,2]
[405110751,1770841831990,-600.0,0.00024953,2]
[405110752,1770841832031,-2322.25,0.00024953,2]
[405110800,1770841838065,-917.02491611,0.00024953,2]
[405110801,1770841838076,-204.0,0.0002589,2]
[405110802,1770841838086,-159.05838731,0.000332,117]
[405110803,1770841838095,-187.0,0.00035259,2]
[405110804,1770841838106,-500.0,0.00036144,15]
[405110805,1770841838115,-500.0,0.00036144,15]
[405110806,1770841838126,-615.30233144,0.00036144,15]
[405110807,1770841838136,-674.310248,0.00036146,2]
[405110808,1770841838147,-2000.0,0.00036603,2]
[405110809,1770841838157,-333.01335715,0.00036669,2]
[405110810,1770841838168,-3045.20519681,0.00036733,2]
[405110811,1770841838181,-17821.94734053,0.00036733,2]
[405110812,1770841838192,-712.0,0.00036733,11]
[405110813,1770841838202,-161.86724713,0.00036832,2]
[405110815,1770841838212,-401.0,0.0003698,11]
[405110816,1770841838222,-400.0,0.00037047,11]
[405110817,1770841838232,-712.0,0.00037047,11]
[405110818,1770841838243,-401.0,0.00037263,11]
[405110819,1770841838253,-548.00276375,0.00037352,2]
[405110820,1770841838263,-669.0,0.00037543,30]
[405110821,1770841838273,-179.0,0.00037591,2]
[405110822,1770841838283,-1355.8721277,0.000376,2]
[405110823,1770841838293,-500.0,0.00037647,2]
[405110824,1770841838303,-3981.3799548,0.00037649,2]
[405110825,1770841838313,-710.0,0.00037661,11]
[405110826,1770841838323,-406.0,0.00037671,11]
[405110827,1770841838333,-179.0,0.00037708,7]
[405110828,1770841838343,-170.0,0.00037739,11]
[405110829,1770841838353,-500.0,0.00037799,2]
[405110830,1770841838364,-712.0,0.00037811,11]
[405110831,1770841838375,-15955.03046089,0.0003789,2]
[405110832,1770841838384,-199.593949,0.000379,2]
[405110833,1770841838394,-6008.63,0.00037953,10]
[405110834,1770841838404,-5007.19,0.00037953,10]
[405110835,1770841838414,-4172.66,0.00037953,10]
[405110836,1770841838424,-3477.22,0.00037953,10]
[405110837,1770841838435,-1287.22064648,0.00037961,3]
[405110838,1770841838444,-2175.37686153,0.00037962,15]
[405110855,1770841840135,-3e-08,0.00037962,15]
[405110857,1770841840150,-2750.04507,0.00037962,15]
[405110859,1770841840161,-3100.01744111,0.00037962,15]
[405110861,1770841840171,-501.0,0.00037962,30]
[405110863,1770841840181,-30046.48255889,0.00037963,15]
[405111034,1770841844763,-396.34542204,0.00036603,2]
[405111035,1770841844775,-1603.65457796,0.00036603,2]
[405111036,1770841844785,-1460.32942374,0.00037591,2]
[405111037,1770841844796,-7953.51744111,0.00037963,15]
[405111038,1770841844806,-376.0,0.00037963,30]
[405111039,1770841844816,-6787.9430967,0.00037971,2]
[405111040,1770841844828,-806.99127554,0.00037971,2]
[405111041,1770841844839,-1048.95,0.00037971,2]
[405111098,1770841846116,-5350.36509727,0.00037971,2]
[405111114,1770842124678,608.32613042,0.00013273,2]
[405111115,1770842168905,500.0,0.00013273,2]
[405111116,1770842168964,1000.0,0.00013821,2]
[405111117,1770842172312,478.19814633,0.00013699,2]
[405111118,1770842183015,500.0,0.00013273,2]
[405111119,1770842185886,272.38392214,0.00013699,2]
[405111120,1770842185913,231.70557103,0.00013699,2]
[405111122,1770842228567,500.0,0.00013273,2]
[405111123,1770842230389,500.0,0.00013273,2]
[405111125,1770842409410,500.0,0.00013273,2]
[405111126,1770842413105,300.0,0.00013673,2]
[405111127,1770842416128,620.54622233,0.00013273,2]
[405111128,1770842417808,502.01829135,0.00013699,2]
[405111129,1770842419721,500.0,0.00013273,2]
[405111130,1770842423440,500.0,0.00013273,2]
[405111131,1770842423609,1000.0,0.00013821,2]
[405111132,1770842423642,514.23489615,0.00014368,2]
[405111134,1770842479024,500.0,0.00013273,2]
[405111135,1770842486984,500.0,0.00013699,2]
[405111136,1770842489826,281.99454491,0.00013273,2]
[405111137,1770842526975,725.35356092,0.00013821,2]
[405111138,1770842527027,500.0,0.00013273,2]
[405111139,1770842527097,300.0,0.00013673,2]
[405111140,1770842527138,300.0,0.00014221,2]
[405111141,1770842532466,500.0,0.00013273,2]
[405111143,1770842611845,3653.92471935,0.000132,2]
[405111144,1770842712483,500.0,0.00013273,2]
[405111145,1770842712546,525.34296555,0.00013821,2]
[405111146,1770842713550,500.0,0.00013699,2]
[405111147,1770842713585,500.0,0.00014247,2]
[405111148,1770842723797,500.0,0.00013699,2]
[405111149,1770842723857,504.37145005,0.00014247,2]
[405111150,1770842724182,500.0,0.00013699,2]
[405111151,1770842724239,1000.0,0.00014247,2]
[405111152,1770842729833,500.0,0.00013273,2]
[405111153,1770842729888,220.23495117,0.00013821,2]
[405111154,1770842730014,314.14228189,0.00013273,2]
[405111155,1770842731036,500.0,0.00013699,2]
[405111156,1770842737090,-150.0,0.00025418,2]
[405111157,1770842737112,-298.46399934,0.00025631,2]
[405111158,1770842737133,-172.35062544,0.00034987,2]
[405111160,1770842791535,500.0,0.00013699,2]
[405111161,1770842791583,500.0,0.00014247,2]
[405111162,1770842793636,500.0,0.00013273,2]
[405111163,1770842817088,-298.46399934,0.00034637,2]
[405111164,1770842828084,-105.9767642,0.00034637,2]
[405111165,1770842828106,-84.03319206,0.00034987,2]
[405111166,1770842828127,-299.033116,0.00035573,2]
[405111167,1770842828148,-712.0,0.00036372,11]
[405111168,1770842828169,-303.25619142,0.00036603,2]
[405111169,1770842832159,500.0,0.00013699,2]
[405111170,1770842836632,316.36600711,0.00013699,2]
[405111171,1770842838084,-1703.66638123,0.00036032,2]
[405111172,1770842838128,-57.05870267,0.00036032,2]
[405111173,1770842838150,-161.0,0.00036638,11]
[405111174,1770842838171,-161.86724714,0.00036832,2]
[405111175,1770842838193,-161.43359154,0.00037014,11]
[405111176,1770843007676,175.68897744,0.00013273,2]
[405111177,1770843007700,324.31102256,0.00013273,2]
[405111178,1770843032166,-156.30750989,0.0002589,2]
[405111179,1770843032177,-1997.7130888,0.00036108,2]
[405111180,1770843032187,-279.26050733,0.00036491,2]
[405111181,1770843032198,-159.05838731,0.00036732,120]
[405111182,1770843032209,-161.86724714,0.00036832,2]
[405111183,1770843032219,-239.56640846,0.00037014,11]
[405111184,1770843032230,-282.0,0.00037543,30]
[405111185,1770843032240,-1086.5871829,0.00037641,2]
[405111186,1770843032249,-199.593949,0.000379,2]
[405111187,1770843032259,-151.0,0.00037962,30]
[405111188,1770843032268,-273.37534365,0.00037962,30]
[405111189,1770843032282,-2175.37686153,0.00037963,15]
[405111190,1770843032292,-400.0,0.00037969,3]
[405111191,1770843032301,-3507.093514,0.00037971,2]
[405111263,1770843040326,-3791.0,0.00037971,2]
[405111267,1770843040385,-1135.23247575,0.00037971,2]
[405111541,1770843046258,-871.62679453,0.00037971,2]
[405111542,1770843046268,-844.0,0.00037971,30]
[405111543,1770843046278,-500.0,0.00038,120]
[405111544,1770843046288,-231.96320547,0.00038,2]
[405111546,1770843066403,502.71454207,0.00013273,2]
[405111547,1770843067342,500.0,0.00013273,2]
[405111548,1770843067870,180.50448586,0.00013699,2]
[405111549,1770843072455,500.0,0.00013699,2]
[405111550,1770843090527,301.61574,0.00013273,2]
[405111558,1770843374166,175.69914693,0.00013273,2]
[405111559,1770843424065,508.16028706,0.00013699,2]
[405111560,1770843608282,500.0,0.00013273,2]
[405111561,1770843610706,500.0,0.00013273,2]
[405111563,1770843688319,500.0,0.00013273,2]
[405111567,1770843847001,500.0,0.00013273,2]
[405111568,1770843847029,1000.0,0.00013821,2]
[405111569,1770843910592,500.0,0.00013699,2]
[405111570,1770843910670,500.0,0.00014247,2]
[405111571,1770843925257,500.0,0.00013273,2]
[405111572,1770843925294,500.0,0.00013821,2]
[405111573,1770843927734,608.27543567,0.00013699,2]
[405111574,1770843934088,-310.20597247,0.00035521,2]
[405111575,1770843934112,-31.06086523,0.0003588,2]
[405111576,1770843985225,511.64534676,0.00013699,2]
[405111577,1770843991940,150.60030438,0.00016438,2]
[405111578,1770843997009,500.0,0.00013273,2]
[405111579,1770844025640,300.0,0.00013673,2]
[405111580,1770844025695,600.0,0.00014221,2]
[405111581,1770844025749,300.0,0.00014768,2]
[405111582,1770844031889,500.0,0.00013699,2]
[405111583,1770844031950,1000.0,0.00014247,2]
[405111584,1770844031992,1000.0,0.00014795,2]
[405111585,1770844032094,-1361.22198672,0.00035521,2]
[405111586,1770844032115,-191.160517,0.00036242,2]
[405111587,1770844032137,-216.74363592,0.00036719,11]
[405111588,1770844037090,-184.25636408,0.00036719,11]
[405111589,1770844037114,-132.81067973,0.00037691,7]
[405111590,1770844042123,-245.37564165,0.00037691,7]
[405111600,1770844159128,-199.92,0.00030137,120]
[405111606,1770844232184,-702.47520099,0.00030137,120]
[405111607,1770844232196,-501.0,0.00037448,30]
[405111608,1770844232207,-6.97078484,0.00037691,7]
[405111609,1770844232218,-2854.76473812,0.00037692,2]
[405111610,1770844232238,-1081.66850248,0.00037692,2]
[405112066,1770844246441,-3149.577616,0.00037692,2]
[405112067,1770844246451,-500.0,0.00037799,15]
[405112068,1770844246461,-568.47812824,0.00037799,15]
[405112069,1770844246471,-271.56518725,0.00037799,7]
[405112070,1770844246481,-331.34934068,0.00037799,15]
[405112071,1770844246491,-672.12115428,0.000378,3]
[405112072,1770844246506,-1863.80346027,0.000378,3]
[405112073,1770844246516,-12016.39653973,0.0003797,15]
[405112085,1770844443271,500.0,0.00013699,2]
[405112087,1770844591268,500.0,0.00013273,2]
[405112088,1770844591423,1000.0,0.00013821,2]
[405112089,1770844591469,789.57285212,0.00014368,2]
[405112093,1770844623804,614.20020313,0.00013273,2]
[405112094,1770844630482,544.14263066,0.00013699,2]
[405112096,1770844803882,500.0,0.00013273,2]
[405112097,1770844803911,610.39630438,0.00013821,2]
[405112098,1770844820367,552.85532759,0.00013273,2]
[405112099,1770844828631,206.32990251,0.00013273,2]
[405112101,1770844890063,278.80286206,0.00013273,2]
[405112104,1770845043650,500.0,0.00013699,2]
[405112105,1770845043691,500.0,0.00013699,2]
[405112110,1770845115795,500.0,0.00013699,2]
[405112111,1770845115849,440.91853521,0.00014247,2]
[405112112,1770845116575,-231.00000003,0.00025039,2]
[405112115,1770845182896,500.0,0.00013273,2]
[405112116,1770845182948,1000.0,0.00013821,2]
[405112117,1770845183806,500.0,0.00013699,2]
[405112118,1770845183836,193.65873791,0.00014247,2]
[405112122,1770845242132,-991.63311137,0.00025039,2]
[405112123,1770845242153,-150.0,0.00025122,2]
[405112124,1770845242174,-1123.52525754,0.00025292,2]
[405112125,1770845242195,-285.0,0.00027122,2]
[405112126,1770845242216,-299.0331163,0.00032445,2]
[405112127,1770845242237,-168.0,0.00033775,2]
[405112128,1770845242258,-511.57418299,0.00034224,2]
[405112129,1770845255532,-67.84198484,0.00034224,2]
[405112130,1770845255556,-422.664363,0.00034664,2]
[405112131,1770845255580,-189.38557976,0.00034691,2]
[405112132,1770845255604,-500.0,0.00034989,7]
[405112133,1770845255629,-79.55699079,0.0003499,2]
[405112139,1770845309024,6094.33100437,0.00017,2]
[405112141,1770845329008,-233.23211675,0.0002465,2]
[405112142,1770845330633,-197.76050675,0.0002465,2]
[405112143,1770845354102,-1088.87788997,0.0002465,2]
[405112144,1770845354124,-317.87036835,0.00025,7]
[405112145,1770845369123,-199.92,0.00029999,2]
[405112179,1770845432427,-156.0,0.00029452,34]
[405112180,1770845432437,-200.0,0.00029999,2]
[405112183,1770845432448,-929.0,0.00029999,2]
[405112184,1770845432457,-482.416,0.0003,7]
[405112444,1770845438695,-4010.79842062,0.0003,7]
[405112446,1770845438880,-6585.62178924,0.0003,7]
[405112447,1770845438892,-199.17191284,0.0003013,2]
[405112448,1770845438903,-5000.0,0.00030137,120]
[405112449,1770845438914,-233.23211675,0.00030137,120]
[405112450,1770845438925,-500.0,0.00034989,7]
[405112451,1770845438935,-500.0,0.00034989,7]
[405112452,1770845438946,-500.0,0.00034989,7]
[405112453,1770845438957,-500.0,0.00034989,7]
[405112454,1770845438967,-265.55295838,0.00034989,7]
[405112455,1770845438977,-500.0,0.00034989,7]
[405112456,1770845438987,-500.0,0.00034989,7]
[405112457,1770845438997,-558.79291414,0.00034989,7]
[405112458,1770845439007,-27512.42627314,0.00034989,2]
[405112459,1770845439017,-1007.3,0.0003499,3]
[405112460,1770845439028,-662.7,0.0003499,3]
[405112461,1770845439042,-331.35,0.0003499,3]
[405112462,1770845439051,-6416.2139847,0.0003499,2]
[405112463,1770845439061,-662.74,0.0003499,3]
[405112464,1770845439072,-7016.99,0.0003499,10]
[405112465,1770845439083,-265823.39539417,0.00035,3]
[405112533,1770845440724,-3e-08,0.00035,3]
[405112633,1770845441750,63.25174168,0.00024953,2]
[405112781,1770845445168,-134.50876507,0.00024953,2]
[405112782,1770845445181,-334.49123493,0.00035,3]
[405112784,1770845446759,-280.30018313,0.00035,3]
[405112786,1770845480292,160.57148687,0.00013699,2]
[405112787,1770845481047,352.90196617,0.00013699,2]
[405112788,1770845488063,500.0,0.00013273,2]
[405112793,1770845577235,-500.0,0.00034989,2]
[405112794,1770845577264,-500.0,0.00034999,2]
[405112795,1770845577286,-500.0,0.00035,3]
[405112796,1770845577298,-500.0,0.00035,3]
[405112797,1770845577310,-1923.26734645,0.00035,3]
[405112799,1770845796749,275.05842136,0.00013273,2]
[405112800,1770845828718,500.0,0.00013699,2]
[405112801,1770845828782,500.0,0.00014247,2]
[405112802,1770845951661,500.0,0.00013273,2]
[405112803,1770845951731,1000.0,0.00013821,2]
[405112804,1770845951774,1500.0,0.00014368,2]
[405112806,1770846009935,500.0,0.00013699,2]
[405112807,1770846014170,300.0,0.00013673,2]
[405112808,1770846021400,191.11703376,0.00013699,2]
[405112812,1770846067125,500.0,0.00013699,2]
[405112813,1770846069480,500.0,0.00013273,2]
[405112814,1770846072900,500.0,0.00013273,2]
[405112815,1770846072954,1000.0,0.00013821,2]
[405112816,1770846081710,500.0,0.00013699,2]
[405112817,1770846081751,532.93019237,0.00014247,2]
[405112818,1770846096668,500.0,0.00013699,2]
[405112819,1770846124346,509.02033208,0.00013699,2]
[405112820,1770846130490,500.0,0.00013699,2]
[405112821,1770846136163,500.0,0.00013273,2]
[405112822,1770846136222,501.78460481,0.00013821,2]
[405112823,1770846172496,11307.2162327,0.00028722,120]
[405112825,1770846318052,500.0,0.00013699,2]
[405112826,1770846318102,1000.0,0.00014247,2]
[405112827,1770846318155,1000.0,0.00014795,2]
[405112828,1770846339123,-175.0,0.0002514,2]
[405112829,1770846339147,-204.0,0.00025394,2]
[405112830,1770846339169,-240.85984607,0.00025631,2]
[405112832,1770846377059,500.0,0.00013273,2]
[405112833,1770846383083,503.18327958,0.00013699,2]
[405112834,1770846383123,500.0,0.00013699,2]
[405112835,1770846383151,1000.0,0.00014247,2]
[405112836,1770846403385,-298.46399934,0.00025121,2]
[405112837,1770846413105,500.0,0.00013699,2]
[405112838,1770846427082,-1479.81422915,0.00025121,2]
[405112839,1770846431084,-3221.72177151,0.00025121,2]
[405112840,1770846431106,-150.0,0.00025163,2]
[405112841,1770846431126,-702.90476288,0.00025375,2]
[405112842,1770846431148,-517.86624249,0.00025498,3]
[405112843,1770846431171,-591.14015393,0.00025631,2]
[405112844,1770846431194,-884.7935896,0.0002607,3]
[405112845,1770846431216,-200.0,0.00026848,2]
[405112846,1770846431239,-1251.72093672,0.00027032,3]
[405112847,1770846431263,-1618.64828383,0.00027994,3]
[405112848,1770846431283,-85.69149625,0.00028418,2]
[405112849,1770846441837,500.0,0.00013699,2]
[405112850,1770846447097,-144.76334234,0.00028418,2]
[405112851,1770846447120,-366.99780904,0.00028955,3]
[405112853,1770846558114,-3642.01347538,0.00024703,2]
[405112854,1770846558137,-5000.0,0.00024953,2]
[405112855,1770846558157,-97.90855645,0.00029452,34]
[405112856,1770846564309,-2298.32034557,0.00024953,2]
[405112857,1770846607765,151.67965443,0.00013273,2]
[405112858,1770846607788,24.00932301,0.00013273,2]
[405112859,1770846615554,500.0,0.00013273,2]
[405112860,1770846615602,443.842022,0.00014368,2]
[405112861,1770846615655,1000.0,0.00013821,2]
[405112862,1770846624621,500.0,0.00014247,2]
[405112863,1770846624681,500.0,0.00013699,2]
[405112865,1770846631548,-58.09144355,0.00029452,34]
[405112866,1770846631559,-155.80946824,0.00031987,2]
[405112867,1770846631570,-378.89908821,0.00032934,7]
[405112868,1770846631607,-121.10091179,0.00032934,7]
[405112869,1770846631618,-223.34747817,0.000332,117]
[405112870,1770846631628,-147.98633404,0.00034408,7]
[405112931,1770846637656,-352.01366596,0.00034408,7]
[405112932,1770846637666,-245.62595865,0.00034764,2]
[405112933,1770846637676,-500.0,0.00034989,2]
[405112934,1770846637687,-340.79159501,0.00034989,2]
[405112935,1770846637697,-340.89404357,0.00034989,2]
[405112936,1770846637707,-344.23471702,0.00034989,2]
[405112937,1770846637717,-114.46637561,0.00034998,7]
[405112938,1770846637729,-385.53362439,0.00034998,7]
[405112939,1770846637739,-317.64234193,0.00034998,7]
[405112940,1770846639893,-182.35765807,0.00034998,7]
[405112941,1770846639904,-500.0,0.00034998,7]
[405112942,1770846639915,-307.28366204,0.00034998,7]
[405112943,1770846639926,-650.02727789,0.00034999,2]
[405112944,1770846639936,-6517.78935623,0.00034999,2]
[405112945,1770846639946,-5467.74204577,0.00035,3]
[405113094,1770846645687,-11046.80379552,0.00035,3]
[405113095,1770846645697,-168.0,0.00035196,2]
[405113097,1770846645707,-328.44471153,0.00035387,2]
[405113098,1770846645717,-303.26315845,0.00035387,2]
[405113099,1770846645727,-200.62382963,0.00036,2]
[405113100,1770846645736,-283.04418257,0.00036113,3]
[405113101,1770846645746,-183.7401058,0.00036113,3]
[405113102,1770846645756,-422.664363,0.00036123,2]
[405113103,1770846645766,-10008.3992597,0.0003613,2]
[405113104,1770846645775,-151.0,0.00036168,31]
[405113105,1770846645785,-401.0,0.00036399,11]
[405113106,1770846645795,-161.0,0.00036492,11]
[405113107,1770846645805,-712.0,0.00036552,11]
[405113108,1770846645815,-2000.0,0.00036603,2]
[405113109,1770846645825,-151.0,0.00036648,31]
[405113110,1770846645835,-162.0,0.00036698,11]
[405113111,1770846645845,-161.86724713,0.0003686,2]
[405113112,1770846645854,-401.0,0.00037,11]
[405113113,1770846645865,-401.0,0.00037018,11]
[405113114,1770846645875,-669.0,0.00037131,30]
[405113115,1770846645885,-712.0,0.0003736,11]
[405113116,1770846645895,-741.08018797,0.00037555,2]
[405113117,1770846645905,-422.664363,0.00037582,2]
[405113118,1770846645915,-405.0,0.00037658,11]
[405113119,1770846645925,-712.0,0.00037674,11]
[405113120,1770846645936,-605.42782138,0.00037677,2]
[405113121,1770846645945,-393.01769406,0.00037677,2]
[405113122,1770846645955,-170.0,0.00037679,11]
[405113123,1770846645965,-710.0,0.00037772,11]
[405113124,1770846645974,-401.0,0.00037818,11]
[405113125,1770846645984,-151.0,0.00037857,31]
[405113126,1770846645994,-15955.03046089,0.0003789,2]
[405113127,1770846646004,-151.0,0.0003789,31]
[405113128,1770846646013,-167.04246,0.0003789,31]
[405113129,1770846646023,-300.0,0.000379,2]
[405113130,1770846646033,-250.0,0.00037948,2]
[405113131,1770846646043,-250.0,0.00037948,2]
[405113132,1770846646053,-249.30018313,0.00037948,2]
[405113133,1770846646063,-962.43209771,0.00037959,3]
[405113134,1770846646072,-3396.18,0.0003796,10]
[405113135,1770846646082,-5815.49,0.0003796,10]
[405113136,1770846646092,-4846.24,0.0003796,10]
[405113137,1770846646102,-962.43209771,0.0003796,3]
[405113138,1770846646113,-962.43209771,0.00037961,3]
[405113139,1770846646122,-38000.0,0.0003797,15]
[405113140,1770846646132,-5508.78260276,0.0003797,15]
[405113141,1770846646142,-6760.00000003,0.0003797,15]
[405113142,1770846646151,-21797.60346027,0.0003797,15]
[405113143,1770846646161,-56700.79774621,0.00037971,2]
[405113144,1770846646171,-509.54,0.00037971,2]
[405113145,1770846646180,-2000.0,0.0003799,2]
[405113146,1770846646190,-962.43209771,0.0003799,3]
[405113147,1770846646199,-6268.03679453,0.00038,2]
[405113148,1770846646320,-10710.31,0.00038,2]
[405113149,1770846646331,-2748.34,0.00038,30]
[405113150,1770846646341,-168.88,0.00038,7]
[405113151,1770846646351,-1127.23,0.000381,30]
[405113152,1770846646362,-546.5538,0.000381,120]
[405113153,1770846646374,-401.0,0.00038138,11]
[405113154,1770846646384,-310.14761,0.00038214,10]
[405113155,1770846646394,-5984.40556569,0.00038224,2]
[405113156,1770846646404,-4812.16048855,0.00038234,3]
[405113157,1770846646415,-68400.04130933,0.00038244,2]
[405113159,1770846646577,-652.25,0.00038244,2]
[405113174,1770846666354,500.0,0.00013273,2]
[405113175,1770846673414,277.12604042,0.00013699,2]
[405113176,1770846674295,500.0,0.00013699,2]
[405113177,1770846679509,500.0,0.00013273,2]
[405113178,1770846679559,500.0,0.00013821,2]
[405113179,1770846801865,211.44754782,0.0002,2]
[405113186,1770847023403,500.0,0.00013699,2]
[405113187,1770847027609,500.0,0.00013699,2]
[405113190,1770847285456,500.0,0.00013699,2]
[405113191,1770847286535,500.0,0.00013273,2]
[405113192,1770847286564,500.0,0.00013821,2]
[405113193,1770847290352,500.6948387,0.00013699,2]
[405113195,1770847548090,-414.12613854,0.00027397,5]
[405113196,1770847582340,500.0,0.00013273,2]
[405113197,1770847582377,1000.0,0.00013821,2]
[405113198,1770847589309,500.0,0.00013699,2]
[405113199,1770847592700,326.45991419,0.00013699,2]
[405113200,1770847593441,646.1976893,0.00013699,2]
[405113201,1770847593687,548.35744713,0.00013273,2]
[405113202,1770847596280,500.0,0.00013699,2]
[405113203,1770847635090,-85.87386146,0.00027397,5]
[405113204,1770847635110,-150.95184753,0.00027397,5]
[405113205,1770847635131,-706.10059677,0.00028565,2]
[405113206,1770847635152,-1392.28285195,0.00028854,2]
[405113207,1770847635172,-300.0,0.00029144,2]
[405113208,1770847635194,-198.10235156,0.00029144,2]
[405113209,1770847648216,-101.89764844,0.00029144,2]
[405113210,1770847648239,-331.44411391,0.00029145,2]
[405113211,1770847653104,-272.01419262,0.00029145,2]
[405113212,1770847746224,-5000.0,0.00024703,2]
[405113213,1770847746247,-4345.74612522,0.00024953,2]
[405113214,1770847750086,-654.25387478,0.00024953,2]
[405113215,1770847750108,-300.0,0.00025204,2]
[405113216,1770847750129,-420.0,0.00027299,2]
[405113217,1770847750151,-180.0,0.00029567,2]
[405113218,1770847754257,2379.93217584,0.00024953,2]
[405113219,1770847774095,-862.19375089,0.00024703,2]
[405113475,1770847845737,-1000.0,0.00024703,2]
[405113476,1770847845800,-384.6537765,0.00024703,2]
[405113477,1770847845810,-2620.06782416,0.00024953,2]
[405113478,1770847845822,-254.51219284,0.00027,2]
[405113480,1770847845832,-346.23988033,0.00036,2]
[405113481,1770847845842,-256.47367356,0.00036,2]
[405113482,1770847845852,-374.99001922,0.00036124,2]
[405113483,1770847845862,-520.85962976,0.00036152,2]